fUSD/lending_fUSD_20251001
["ID","MTS","AMOUNT","RATE_DAILY","PERIOD"]
[388634240,1759281032505,-150.131,0.00020263,2]
[388634242,1759281032515,-150.946,0.00020263,2]
[388634243,1759281032525,-150.096,0.00020263,2]
[388634244,1759281032535,-151.0,0.00020263,2]
[388634245,1759281032544,-150.098,0.00020263,2]
[388634246,1759281032553,-530.97,0.00020263,2]
[388634247,1759281032564,-150.23,0.00020293,2]
[388634248,1759281032575,-700.0,0.0002031,2]
[388634249,1759281032583,-518.56,0.00020496,2]
[388634250,1759281032594,-150.23,0.00020908,2]
[388634251,1759281032606,-300.0,0.00021031,2]
[388634252,1759281032618,-150.0,0.00021521,7]
[388634253,1759281032628,-150.23,0.00021523,2]
[388634254,1759281032639,-165.95,0.00021546,2]
[388634255,1759281032651,-187.81,0.00021586,2]
[388634256,1759281032660,-1000.0,0.00021619,2]
[388634257,1759281032669,-500.0,0.0002168,2]
[388634258,1759281032679,-163.06,0.00021699,2]
[388634259,1759281032688,-350.01,0.00021757,2]
[388634260,1759281032698,-1190.0,0.000219,5]
[388634261,1759281032707,-5000.0,0.00021918,2]
[388634262,1759281032716,-728.62,0.00021945,30]
[388634263,1759281032726,-227.73,0.00022,2]
[388634264,1759281032735,-600.0,0.0002211,2]
[388634265,1759281032744,-150.23,0.00022138,2]
[388634266,1759281032753,-300.0,0.000224,2]
[388634267,1759281032763,-1000.0,0.0002243,2]
[388634268,1759281032772,-600.0,0.00022658,2]
[388634269,1759281032781,-150.0,0.00022816,2]
[388634270,1759281032791,-150.0,0.00022907,4]
[388634271,1759281032800,-150.0,0.00022907,4]
[388634272,1759281032809,-150.00000001,0.00022907,4]
[388634273,1759281032818,-414.59505373,0.0002292,2]
[388634274,1759281032827,-486.25345808,0.00023024,2]
[388634275,1759281032837,-4113.0,0.00023051,2]
[388634276,1759281032846,-557.91186243,0.00023127,2]
[388634277,1759281032858,-600.0,0.00023206,2]
[388634278,1759281032867,-629.57026678,0.00023231,2]
[388634279,1759281032877,-1000.0,0.00023241,2]
[388634280,1759281032886,-701.22867113,0.00023335,2]
[388634281,1759281032895,-227.73,0.00023378,2]
[388634282,1759281032905,-772.88707547,0.00023439,2]
[388634283,1759281032914,-322.6107,0.0002347,2]
[388634284,1759281032923,-500.0,0.0002347,2]
[388634285,1759281032932,-500.0,0.0002347,2]
[388634286,1759281032941,-500.0,0.0002347,2]
[388634287,1759281032950,-500.0,0.0002347,2]
[388634288,1759281032959,-500.0,0.0002347,2]
[388634289,1759281032968,-500.0,0.0002347,2]
[388634290,1759281032977,-500.0,0.0002347,2]
[388634291,1759281032986,-500.0,0.0002347,2]
[388634292,1759281032996,-500.0,0.0002347,2]
[388634293,1759281033006,-500.0,0.0002347,2]
[388634294,1759281033015,-500.0,0.0002347,2]
[388634295,1759281033035,-500.0,0.0002347,2]
[388634296,1759281033048,-500.0,0.0002347,2]
[388634297,1759281033058,-168.12,0.0002347,2]
[388634298,1759281033068,-844.54547982,0.00023543,2]
[388634299,1759281033077,-916.20388417,0.00023647,2]
[388634300,1759281033087,-168.12,0.00023744,2]
[388634301,1759281033097,-987.86228852,0.00023751,2]
[388634302,1759281033108,-600.0,0.00023754,2]
[388634303,1759281033118,-300.0,0.0002377,2]
[388634304,1759281033127,-889.18,0.00023836,2]
[388634305,1759281033137,-1059.52069287,0.00023855,2]
[388634306,1759281033146,-1131.17909722,0.00023959,2]
[388634307,1759281033155,-168.12,0.00024018,2]
[388634308,1759281033165,-1000.0,0.00024051,2]
[388634309,1759281033175,-1202.83750157,0.00024062,2]
[388634310,1759281033185,-150.01,0.00024107,2]
[388634311,1759281033194,-1274.49590592,0.00024166,2]
[388634312,1759281033204,-150.0,0.00024179,4]
[388634313,1759281033214,-1346.15431026,0.0002427,2]
[388634314,1759281033224,-600.0,0.00024302,2]
[388634315,1759281033233,-1417.81271461,0.00024374,2]
[388634316,1759281033243,-3630.79515619,0.0002439,2]
[388634317,1759281033253,-1718.0,0.000244,2]
[388634318,1759281033263,-1489.47111896,0.00024478,2]
[388634319,1759281033272,-5000.0,0.00024557,2]
[388634320,1759281033282,-2500.0,0.00024557,2]
[388634321,1759281033292,-1399.76419044,0.00024557,2]
[388634322,1759281033301,-3207.8713702,0.00024557,2]
[388634323,1759281033311,-3629.75844992,0.00024557,2]
[388634324,1759281033320,-37.17319226,0.00024582,2]
[388634325,1759281033339,-1523.95633105,0.00024582,2]
[388634326,1759281033349,-3207.87137012,0.00024618,2]
[388634327,1759281033359,-3478.41489226,0.00024618,2]
[388634333,1759281037979,-151.34355766,0.00024618,2]
[388634334,1759281037988,-154.01114444,0.00024654,7]
[388634335,1759281037998,-1707.36784322,0.00024655,2]
[388634336,1759281038009,-500.0,0.00024656,2]
[388634337,1759281038018,-214.15491809,0.00024656,2]
[388634338,1759281038028,-264.36763287,0.00024656,2]
[388634339,1759281038038,-500.0,0.00024656,2]
[388634340,1759281038047,-500.0,0.00024656,2]
[388634341,1759281038057,-528.91127809,0.00024656,2]
[388634342,1759281038066,-500.0,0.00024656,2]
[388634343,1759281038075,-500.0,0.00024656,2]
[388634344,1759281038084,-500.0,0.00024656,2]
[388634345,1759281038094,-500.0,0.00024656,2]
[388634346,1759281038102,-500.0,0.00024656,2]
[388634347,1759281038111,-500.0,0.00024656,2]
[388634348,1759281038120,-500.0,0.00024656,2]
[388634349,1759281038129,-424.81150698,0.00024656,2]
[388634350,1759281038139,-500.0,0.00024656,2]
[388634351,1759281038150,-500.0,0.00024656,2]
[388634352,1759281038159,-500.0,0.00024656,2]
[388634353,1759281038169,-348.64606828,0.00024656,2]
[388634354,1759281038179,-500.0,0.00024656,2]
[388634355,1759281038188,-500.0,0.00024656,2]
[388634356,1759281038197,-500.0,0.00024656,2]
[388634357,1759281038206,-500.0,0.00024656,2]
[388634358,1759281038215,-500.0,0.00024656,2]
[388634359,1759281038225,-500.0,0.00024656,2]
[388634360,1759281038234,-500.0,0.00024656,2]
[388634361,1759281038244,-500.0,0.00024656,2]
[388634362,1759281038253,-500.0,0.00024656,2]
[388634364,1759281038262,-500.0,0.00024656,2]
[388634365,1759281038272,-500.0,0.00024656,2]
[388634366,1759281038281,-236.89386364,0.00024656,2]
[388634367,1759281038291,-500.0,0.00024656,2]
[388634368,1759281038300,-500.0,0.00024656,2]
[388634369,1759281038310,-500.0,0.00024656,2]
[388634370,1759281038319,-500.0,0.00024656,2]
[388634371,1759281038329,-500.0,0.00024656,2]
[388634372,1759281038339,-500.0,0.00024656,2]
[388634373,1759281038348,-500.0,0.00024656,2]
[388634374,1759281038358,-500.0,0.00024656,2]
[388634375,1759281038368,-1055.0,0.00024657,2]
[388634376,1759281038378,-11558.79812367,0.00024657,2]
[388634377,1759281039773,-357006.52710206,0.00024657,2]
[388634378,1759281039787,-319944.0675395,0.00024657,2]
[388634379,1759281039797,-373.3379008,0.00024657,2]
[388634380,1759281039806,-1250.72,0.00024657,2]
[388634381,1759281039815,-500.0,0.00024657,2]
[388634382,1759281039824,-819.51,0.00024657,2]
[388634383,1759281039834,-614.81,0.00024657,2]
[388634384,1759281039843,-500.0,0.00024657,2]
[388634385,1759281039852,-860.27,0.00024657,2]
[388634386,1759281039862,-710.47,0.00024657,2]
[388634387,1759281039873,-500.0,0.00024657,2]
[388634388,1759281039882,-500.0,0.00024657,2]
[388634389,1759281039892,-500.0,0.00024657,2]
[388634390,1759281039903,-966.33,0.00024657,2]
[388634391,1759281039913,-500.0,0.00024657,2]
[388634392,1759281039922,-500.0,0.00024657,2]
[388634393,1759281039931,-869.08,0.00024657,2]
[388634394,1759281039941,-1882.04,0.00024657,2]
[388634395,1759281039951,-500.0,0.00024657,2]
[388634396,1759281039960,-2100.28,0.00024657,2]
[388634397,1759281039969,-500.0,0.00024657,2]
[388634398,1759281039979,-500.0,0.00024657,2]
[388634399,1759281039989,-500.0,0.00024657,2]
[388634400,1759281039999,-500.0,0.00024657,2]
[388634401,1759281040010,-500.0,0.00024657,2]
[388634402,1759281040019,-500.0,0.00024657,2]
[388634403,1759281040030,-540.91,0.00024657,2]
[388634404,1759281040039,-500.0,0.00024657,2]
[388634405,1759281040049,-500.0,0.00024657,2]
[388634406,1759281040060,-500.0,0.00024657,2]
[388634407,1759281040070,-500.0,0.00024657,2]
[388634408,1759281040080,-500.0,0.00024657,2]
[388634409,1759281040090,-869.76,0.00024657,2]
[388634410,1759281040101,-1618.66,0.00024657,2]
[388634411,1759281040112,-500.0,0.00024657,2]
[388634412,1759281040122,-2422.99,0.00024657,2]
[388634413,1759281040132,-500.0,0.00024657,2]
[388634414,1759281040141,-1822.02,0.00024657,2]
[388634415,1759281040151,-500.0,0.00024657,2]
[388634416,1759281040160,-500.0,0.00024657,2]
[388634417,1759281040169,-1012.66,0.00024657,2]
[388634418,1759281040179,-500.0,0.00024657,2]
[388634419,1759281040187,-500.0,0.00024657,2]
[388634420,1759281040197,-500.0,0.00024657,2]
[388634421,1759281040206,-1539.47,0.00024657,2]
[388634422,1759281040215,-500.0,0.00024657,2]
[388634423,1759281040225,-500.0,0.00024657,2]
[388634424,1759281040235,-1104.24,0.00024657,2]
[388634425,1759281040244,-1106.5,0.00024657,2]
[388634426,1759281040253,-500.0,0.00024657,2]
[388634427,1759281040263,-500.0,0.00024657,2]
[388634428,1759281040272,-500.0,0.00024657,2]
[388634429,1759281040281,-500.0,0.00024657,2]
[388634430,1759281040290,-500.0,0.00024657,2]
[388634431,1759281040300,-500.0,0.00024657,2]
[388634432,1759281040310,-1017.08,0.00024657,2]
[388634433,1759281040320,-500.0,0.00024657,2]
[388634434,1759281040329,-500.0,0.00024657,2]
[388634435,1759281040339,-885.25,0.00024657,2]
[388634436,1759281040348,-686.31,0.00024657,2]
[388634437,1759281040358,-500.0,0.00024657,2]
[388634438,1759281040368,-500.0,0.00024657,2]
[388634439,1759281040377,-500.0,0.00024657,2]
[388634440,1759281040386,-500.0,0.00024657,2]
[388634441,1759281040395,-1600.81,0.00024657,2]
[388634442,1759281040405,-500.0,0.00024657,2]
[388634443,1759281040415,-500.0,0.00024657,2]
[388634444,1759281040424,-500.0,0.00024657,2]
[388634445,1759281040434,-3276.28,0.00024657,2]
[388634446,1759281040444,-500.0,0.00024657,2]
[388634447,1759281040453,-2598.91,0.00024657,2]
[388634448,1759281040464,-579.73,0.00024657,2]
[388634449,1759281040473,-553.58,0.00024657,2]
[388634450,1759281040483,-1740.47,0.00024657,2]
[388634451,1759281040492,-642.68,0.00024657,2]
[388634452,1759281040502,-500.0,0.00024657,2]
[388634453,1759281040512,-500.0,0.00024657,2]
[388634454,1759281040521,-1008.96,0.00024657,2]
[388634455,1759281040531,-1353.7,0.00024657,2]
[388634456,1759281040541,-500.0,0.00024657,2]
[388634457,1759281040551,-563.79,0.00024657,2]
[388634458,1759281040561,-500.0,0.00024657,2]
[388634459,1759281040571,-1790.63,0.00024657,2]
[388634460,1759281040580,-3392.96,0.00024657,2]
[388634461,1759281040589,-500.0,0.00024657,2]
[388634462,1759281040599,-500.0,0.00024657,2]
[388634463,1759281040615,-572.05,0.00024657,2]
[388634464,1759281040625,-681.66,0.00024657,2]
[388634465,1759281040635,-500.0,0.00024657,2]
[388634466,1759281040644,-500.0,0.00024657,2]
[388634467,1759281040655,-668.73,0.00024657,2]
[388634468,1759281040665,-500.0,0.00024657,2]
[388634469,1759281040677,-3382.54,0.00024657,2]
[388634470,1759281040690,-500.0,0.00024657,2]
[388634471,1759281040701,-500.0,0.00024657,2]
[388634472,1759281040711,-500.0,0.00024657,2]
[388634473,1759281040720,-891.63,0.00024657,2]
[388634474,1759281040730,-500.0,0.00024657,2]
[388634475,1759281040739,-3235.16,0.00024657,2]
[388634476,1759281040750,-500.0,0.00024657,2]
[388634477,1759281040759,-500.0,0.00024657,2]
[388634478,1759281040768,-2892.11,0.00024657,2]
[388634479,1759281040778,-504.8,0.00024657,2]
[388634480,1759281040788,-1156.26,0.00024657,2]
[388634481,1759281040797,-3947.83,0.00024657,2]
[388634482,1759281040806,-654.37,0.00024657,2]
[388634483,1759281040816,-621.3,0.00024657,2]
[388634484,1759281040825,-1023.84,0.00024657,2]
[388634485,1759281040834,-500.0,0.00024657,2]
[388634486,1759281040843,-500.0,0.00024657,2]
[388634487,1759281040853,-1723.13,0.00024657,2]
[388634488,1759281040862,-2267.36,0.00024657,2]
[388634489,1759281040873,-500.0,0.00024657,2]
[388634490,1759281040882,-1474.11,0.00024657,2]
[388634491,1759281040891,-500.0,0.00024657,2]
[388634492,1759281040901,-2088.97,0.00024657,2]
[388634493,1759281040911,-315.22581609,0.00024657,2]
[388634494,1759281040922,-500.0,0.00024657,2]
[388634495,1759281040931,-500.0,0.00024657,2]
[388634496,1759281040941,-500.0,0.00024657,2]
[388634497,1759281040950,-577.56,0.00024657,2]
[388634498,1759281040959,-500.0,0.00024657,2]
[388634499,1759281040968,-4523.18,0.00024657,2]
[388634500,1759281040977,-4929.53,0.00024657,2]
[388634501,1759281040987,-2832.96,0.00024657,2]
[388634502,1759281040996,-2239.68,0.00024657,2]
[388634503,1759281041005,-500.0,0.00024657,2]
[388634504,1759281041014,-491.93667199,0.00024657,2]
[388634505,1759281041023,-825.43,0.00024657,2]
[388634506,1759281041033,-500.0,0.00024657,2]
[388634507,1759281041042,-1352.85,0.00024657,2]
[388634508,1759281041051,-500.0,0.00024657,2]
[388634509,1759281041060,-500.0,0.00024657,2]
[388634510,1759281041069,-860.1,0.00024657,2]
[388634511,1759281041079,-892.38,0.00024657,2]
[388634512,1759281041088,-2341.11,0.00024657,2]
[388634513,1759281041097,-2824.36,0.00024657,2]
[388634514,1759281041106,-718.46,0.00024657,2]
[388634515,1759281041117,-709.51,0.00024657,2]
[388634516,1759281041127,-500.0,0.00024657,2]
[388634517,1759281041137,-3210.86,0.00024657,2]
[388634518,1759281041146,-543.0,0.00024657,2]
[388634519,1759281041156,-500.0,0.00024657,2]
[388634520,1759281041166,-748.59,0.00024657,2]
[388634521,1759281041175,-500.0,0.00024657,2]
[388634522,1759281041186,-541.28,0.00024657,2]
[388634523,1759281041195,-4199.68,0.00024657,2]
[388634524,1759281041205,-1314.79,0.00024657,2]
[388634525,1759281041214,-932.63,0.00024657,2]
[388634526,1759281041223,-502.0,0.00024657,2]
[388634527,1759281041233,-485.4165663,0.00024657,2]
[388634528,1759281041242,-2443.38,0.00024657,2]
[388634529,1759281041252,-541.6,0.00024657,2]
[388634530,1759281041262,-500.0,0.00024657,2]
[388634531,1759281041271,-4843.79,0.00024657,2]
[388634532,1759281041280,-4900.65,0.00024657,2]
[388634533,1759281041596,-500.0,0.00024657,2]
[388634534,1759281041696,-2697.61,0.00024657,2]
[388634535,1759281041706,-500.0,0.00024657,2]
[388634536,1759281041715,-500.0,0.00024657,2]
[388634537,1759281041724,-500.0,0.00024657,2]
[388634538,1759281041734,-1211.68,0.00024657,2]
[388634539,1759281041744,-3067.08,0.00024657,2]
[388634540,1759281041753,-500.0,0.00024657,2]
[388634541,1759281041764,-500.0,0.00024657,2]
[388634542,1759281041773,-500.0,0.00024657,2]
[388634543,1759281041783,-2223.5,0.00024657,2]
[388634544,1759281041794,-564.28,0.00024657,2]
[388634545,1759281041804,-1862.85,0.00024657,2]
[388634546,1759281041814,-1205.76,0.00024657,2]
[388634547,1759281041825,-500.0,0.00024657,2]
[388634548,1759281041835,-500.0,0.00024657,2]
[388634549,1759281041847,-443.1640205,0.00024657,2]
[388634550,1759281041875,-1123.7159795,0.00024657,2]
[388634551,1759281041884,-500.0,0.00024657,2]
[388634552,1759281041895,-1643.81,0.00024657,2]
[388634553,1759281041905,-3074.28,0.00024657,2]
[388634554,1759281041915,-500.0,0.00024657,2]
[388634555,1759281041924,-500.0,0.00024657,2]
[388634556,1759281041934,-1763.09,0.00024657,2]
[388634557,1759281041943,-500.0,0.00024657,2]
[388634558,1759281041952,-500.0,0.00024657,2]
[388634559,1759281041963,-751.6,0.00024657,2]
[388634560,1759281041973,-500.0,0.00024657,2]
[388634561,1759281041983,-500.0,0.00024657,2]
[388634562,1759281041994,-1196.53,0.00024657,2]
[388634563,1759281042004,-500.0,0.00024657,2]
[388634564,1759281042013,-3430.76,0.00024657,2]
[388634565,1759281042023,-500.0,0.00024657,2]
[388634566,1759281042032,-2809.98,0.00024657,2]
[388634567,1759281042042,-500.0,0.00024657,2]
[388634568,1759281042052,-3692.27,0.00024657,2]
[388634569,1759281042061,-500.0,0.00024657,2]
[388634570,1759281042071,-500.0,0.00024657,2]
[388634571,1759281042080,-500.0,0.00024657,2]
[388634572,1759281042089,-500.0,0.00024657,2]
[388634573,1759281042099,-500.0,0.00024657,2]
[388634574,1759281042108,-835.23,0.00024657,2]
[388634575,1759281042117,-500.0,0.00024657,2]
[388634576,1759281042127,-538.94,0.00024657,2]
[388634577,1759281042137,-839.72,0.00024657,2]
[388634578,1759281042146,-500.0,0.00024657,2]
[388634579,1759281042156,-839.72,0.00024657,2]
[388634580,1759281042165,-626.53,0.00024657,2]
[388634581,1759281042175,-500.0,0.00024657,2]
[388634582,1759281042184,-3263.93,0.00024657,2]
[388634583,1759281042193,-500.0,0.00024657,2]
[388634584,1759281042203,-500.0,0.00024657,2]
[388634585,1759281042212,-500.0,0.00024657,2]
[388634586,1759281042221,-841.47,0.00024657,2]
[388634587,1759281042230,-500.0,0.00024657,2]
[388634588,1759281042239,-552.47,0.00024657,2]
[388634589,1759281042248,-500.0,0.00024657,2]
[388634590,1759281042258,-500.0,0.00024657,2]
[388634591,1759281042268,-500.0,0.00024657,2]
[388634592,1759281042278,-648.16,0.00024657,2]
[388634593,1759281042288,-500.0,0.00024657,2]
[388634594,1759281042298,-3575.61,0.00024657,2]
[388634595,1759281042309,-439.76087734,0.00024657,2]
[388634596,1759281042318,-500.0,0.00024657,2]
[388634597,1759281042328,-500.0,0.00024657,2]
[388634598,1759281042337,-500.0,0.00024657,2]
[388634599,1759281042348,-500.0,0.00024657,2]
[388634600,1759281042358,-500.0,0.00024657,2]
[388634601,1759281042367,-1612.62,0.00024657,2]
[388634602,1759281042377,-2203.49,0.00024657,2]
[388634603,1759281042387,-500.0,0.00024657,2]
[388634604,1759281042397,-500.0,0.00024657,2]
[388634605,1759281042407,-954.54,0.00024657,2]
[388634606,1759281042417,-678.55,0.00024657,2]
[388634607,1759281042427,-6377.85,0.00024657,2]
[388634608,1759281042436,-1562.61,0.00024657,2]
[388634609,1759281042446,-3430.33,0.00024657,2]
[388634610,1759281042456,-579.16,0.00024657,2]
[388634611,1759281042466,-500.0,0.00024657,2]
[388634612,1759281042475,-875.05,0.00024657,2]
[388634613,1759281042484,-922.15,0.00024657,2]
[388634614,1759281042494,-1667.94,0.00024657,2]
[388634615,1759281042504,-500.0,0.00024657,2]
[388634616,1759281042514,-500.0,0.00024657,2]
[388634617,1759281042524,-1882.54,0.00024657,2]
[388634618,1759281042533,-500.0,0.00024657,2]
[388634619,1759281042544,-500.0,0.00024657,2]
[388634620,1759281042554,-791.72,0.00024657,2]
[388634621,1759281042564,-500.0,0.00024657,2]
[388634622,1759281042574,-500.0,0.00024657,2]
[388634623,1759281042583,-500.0,0.00024657,2]
[388634624,1759281042594,-500.0,0.00024657,2]
[388634625,1759281042604,-1243.17,0.00024657,2]
[388634626,1759281042618,-500.0,0.00024657,2]
[388634627,1759281042628,-500.0,0.00024657,2]
[388634628,1759281042637,-1320.88,0.00024657,2]
[388634629,1759281042647,-500.0,0.00024657,2]
[388634630,1759281042658,-4492.44,0.00024657,2]
[388634631,1759281042667,-1615.73,0.00024657,2]
[388634632,1759281042676,-4130.9,0.00024657,2]
[388634633,1759281042687,-500.0,0.00024657,2]
[388634634,1759281042698,-500.0,0.00024657,2]
[388634635,1759281042707,-500.0,0.00024657,2]
[388634636,1759281042719,-500.0,0.00024657,2]
[388634637,1759281042730,-599.32,0.00024657,2]
[388634638,1759281042741,-500.0,0.00024657,2]
[388634639,1759281042753,-500.0,0.00024657,2]
[388634640,1759281042763,-500.0,0.00024657,2]
[388634641,1759281042774,-500.0,0.00024657,2]
[388634642,1759281042783,-500.0,0.00024657,2]
[388634643,1759281042792,-1125.03,0.00024657,2]
[388634644,1759281042801,-500.0,0.00024657,2]
[388634645,1759281042811,-4235.94,0.00024657,2]
[388634646,1759281042820,-5245.43,0.00024657,2]
[388634647,1759281042830,-500.0,0.00024657,2]
[388634648,1759281042840,-500.0,0.00024657,2]
[388634649,1759281042849,-4637.37,0.00024657,2]
[388634650,1759281042860,-500.0,0.00024657,2]
[388634651,1759281042870,-500.0,0.00024657,2]
[388634652,1759281042879,-524.83797299,0.00024657,2]
[388634653,1759281042889,-545.75156802,0.00024657,2]
[388634654,1759281042898,-500.0,0.00024657,2]
[388634655,1759281042910,-500.0,0.00024657,2]
[388634656,1759281042920,-500.0,0.00024657,2]
[388634657,1759281042931,-500.0,0.00024657,2]
[388634658,1759281042940,-834.03,0.00024657,2]
[388634659,1759281042949,-500.0,0.00024657,2]
[388634660,1759281042958,-500.0,0.00024657,2]
[388634661,1759281042968,-500.0,0.00024657,2]
[388634662,1759281042977,-500.0,0.00024657,2]
[388634663,1759281042986,-500.0,0.00024657,2]
[388634664,1759281042998,-626.87,0.00024657,2]
[388634665,1759281043008,-1511.27,0.00024657,2]
[388634666,1759281043017,-3468.67,0.00024657,2]
[388634667,1759281043026,-2829.48,0.00024657,2]
[388634668,1759281043036,-1789.29,0.00024657,2]
[388634669,1759281043045,-500.0,0.00024657,2]
[388634670,1759281043055,-500.0,0.00024657,2]
[388634671,1759281043065,-500.0,0.00024657,2]
[388634672,1759281043074,-500.0,0.00024657,2]
[388634673,1759281043084,-500.0,0.00024657,2]
[388634674,1759281043093,-500.0,0.00024657,2]
[388634675,1759281043102,-2608.17,0.00024657,2]
[388634676,1759281043112,-500.0,0.00024657,2]
[388634677,1759281043121,-500.0,0.00024657,2]
[388634678,1759281043131,-4173.83,0.00024657,2]
[388634679,1759281043140,-5454.5,0.00024657,2]
[388634680,1759281043149,-500.0,0.00024657,2]
[388634681,1759281043159,-500.0,0.00024657,2]
[388634682,1759281043168,-877.71,0.00024657,2]
[388634683,1759281043178,-1984.95,0.00024657,2]
[388634684,1759281043189,-500.0,0.00024657,2]
[388634685,1759281043199,-500.0,0.00024657,2]
[388634686,1759281043208,-831.24,0.00024657,2]
[388634687,1759281043218,-3440.2,0.00024657,2]
[388634688,1759281043229,-500.0,0.00024657,2]
[388634689,1759281043239,-500.0,0.00024657,2]
[388634690,1759281043249,-500.0,0.00024657,2]
[388634691,1759281043258,-1132.59,0.00024657,2]
[388634692,1759281043268,-3385.25,0.00024657,2]
[388634693,1759281043277,-500.0,0.00024657,2]
[388634694,1759281043287,-500.0,0.00024657,2]
[388634695,1759281043297,-500.0,0.00024657,2]
[388634696,1759281043306,-159.096728,0.00024657,7]
[388634697,1759281043316,-500.0,0.00024657,2]
[388634698,1759281043325,-500.0,0.00024657,2]
[388634699,1759281043334,-500.0,0.00024657,2]
[388634700,1759281043343,-3209.94,0.00024657,2]
[388634701,1759281043353,-500.0,0.00024657,2]
[388634702,1759281043362,-948.57,0.00024657,2]
[388634703,1759281043372,-4647.81,0.00024657,2]
[388634704,1759281043382,-830.0,0.00024657,2]
[388634705,1759281043392,-500.0,0.00024657,2]
[388634706,1759281043401,-500.0,0.00024657,2]
[388634707,1759281043411,-3109.51,0.00024657,2]
[388634708,1759281043421,-200.23478317,0.00024657,2]
[388634709,1759281043431,-500.0,0.00024657,2]
[388634710,1759281043440,-1868.05,0.00024657,2]
[388634711,1759281043450,-1697.03,0.00024657,2]
[388634712,1759281043460,-500.0,0.00024657,2]
[388634713,1759281043470,-2635.32,0.00024657,2]
[388634714,1759281043479,-500.0,0.00024657,2]
[388634715,1759281043489,-2195.66,0.00024657,2]
[388634716,1759281043499,-500.0,0.00024657,2]
[388634717,1759281043509,-2080.43,0.00024657,2]
[388634718,1759281043519,-512.15,0.00024657,2]
[388634719,1759281043528,-4035.32,0.00024657,2]
[388634720,1759281043538,-500.0,0.00024657,2]
[388634721,1759281043547,-500.0,0.00024657,2]
[388634722,1759281043557,-500.0,0.00024657,2]
[388634723,1759281043567,-500.0,0.00024657,2]
[388634724,1759281043576,-500.0,0.00024657,2]
[388634725,1759281043585,-1007.29,0.00024657,2]
[388634726,1759281043595,-170.234452,0.00024657,7]
[388634727,1759281043605,-500.0,0.00024657,2]
[388634728,1759281043619,-500.0,0.00024657,2]
[388634729,1759281043629,-4337.34,0.00024657,2]
[388634730,1759281043639,-500.0,0.00024657,2]
[388634731,1759281043649,-500.0,0.00024657,2]
[388634732,1759281043662,-512.27,0.00024657,2]
[388634733,1759281043672,-1803.17,0.00024657,2]
[388634735,1759281043681,-347.886864,0.00024657,2]
[388634736,1759281043690,-4703.64,0.00024657,2]
[388634737,1759281043701,-1086.37,0.00024657,2]
[388634738,1759281043710,-500.0,0.00024657,2]
[388634739,1759281043719,-583.2,0.00024657,2]
[388634740,1759281043728,-5038.55,0.00024657,2]
[388634741,1759281043737,-500.0,0.00024657,2]
[388634742,1759281043747,-500.0,0.00024657,2]
[388634743,1759281043756,-154.04690974,0.00024657,2]
[388634744,1759281043765,-500.0,0.00024657,2]
[388634745,1759281043775,-500.0,0.00024657,2]
[388634746,1759281043784,-2706.86,0.00024657,2]
[388634747,1759281043794,-500.0,0.00024657,2]